[Event "*** Titled Tuesday Blitz"]
[Site "Chess.com"]
[Date "2021.04.20"]
[Round "5"]
[White "Iskusnyh"]
[Black "UnknownxArmy"]
[Result "0-1"]
[WhiteElo "2621"]
[BlackElo "2486"]
[TimeControl "180+1"]
[EndTime "10:53:56 PDT"]
[Termination "UnknownxArmy won by resignation"]

1. d4 {[%clk 0:03:00.9]} 1... Nf6 {[%clk 0:02:57.4]} 2. c4 {[%clk 0:03:00.9]}
2... e6 {[%clk 0:02:57.7]} 3. Nc3 {[%clk 0:03:00.6]} 3... Bb4 {[%clk 0:02:57.4]}
4. e3 {[%clk 0:03:00.5]} 4... O-O {[%clk 0:02:57.4]} 5. Bd2 {[%clk 0:03:00.8]}
5... d5 {[%clk 0:02:56.8]} 6. Nf3 {[%clk 0:03:00]} 6... b6 {[%clk 0:02:51.4]} 7.
cxd5 {[%clk 0:02:59.9]} 7... exd5 {[%clk 0:02:51.4]} 8. Bd3 {[%clk 0:03:00.1]}
8... Bb7 {[%clk 0:02:51.8]} 9. O-O {[%clk 0:03:00.3]} 9... Nbd7 {[%clk
0:02:51.4]} 10. Rc1 {[%clk 0:02:57.4]} 10... Be7 {[%clk 0:02:49.4]} 11. Bb1
{[%clk 0:02:17.8]} 11... Ne4 {[%clk 0:02:41.7]} 12. Nxe4 {[%clk 0:01:49]} 12...
dxe4 {[%clk 0:02:42.6]} 13. Ne5 {[%clk 0:01:47.7]} 13... Nxe5 {[%clk 0:02:22.3]}
14. dxe5 {[%clk 0:01:47.3]} 14... Qd5 {[%clk 0:02:12.3]} 15. Bc3 {[%clk
0:01:45]} 15... Qxd1 {[%clk 0:02:12.3]} 16. Rfxd1 {[%clk 0:01:41.7]} 16... Rfd8
{[%clk 0:02:12.8]} 17. Kf1 {[%clk 0:01:18.6]} 17... Rxd1+ {[%clk 0:02:09]} 18.
Rxd1 {[%clk 0:01:18.3]} 18... Rd8 {[%clk 0:02:09.9]} 19. Rxd8+ {[%clk
0:01:06.3]} 19... Bxd8 {[%clk 0:02:10.8]} 20. Ke2 {[%clk 0:01:05.2]} 20... Kf8
{[%clk 0:02:09.4]} 21. f3 {[%clk 0:00:53.4]} 21... Ke7 {[%clk 0:02:02]} 22. Bxe4
{[%clk 0:00:49.6]} 22... Bxe4 {[%clk 0:02:01.4]} 23. fxe4 {[%clk 0:00:49.9]}
23... c5 {[%clk 0:01:58]} 24. Kd3 {[%clk 0:00:45]} 24... Ke6 {[%clk 0:01:52.8]}
25. Kc4 {[%clk 0:00:42.2]} 25... a6 {[%clk 0:01:52.8]} 26. a4 {[%clk 0:00:40]}
26... Be7 {[%clk 0:01:46.5]} 27. g3 {[%clk 0:00:23]} 27... h5 {[%clk 0:01:46.3]}
28. h3 {[%clk 0:00:19.7]} 28... g5 {[%clk 0:01:43.8]} 29. g4 {[%clk 0:00:19.1]}
29... hxg4 {[%clk 0:01:44.2]} 30. hxg4 {[%clk 0:00:19.3]} 30... Bf8 {[%clk
0:01:44.9]} 31. Be1 {[%clk 0:00:18.1]} 31... Kxe5 {[%clk 0:01:39.9]} 32. Kd3
{[%clk 0:00:17.8]} 32... c4+ {[%clk 0:01:34.9]} 33. Kxc4 {[%clk 0:00:16.5]}
33... Kxe4 {[%clk 0:01:35.6]} 34. Bd2 {[%clk 0:00:14.4]} 34... Bc5 {[%clk
0:01:35.5]} 35. b4 {[%clk 0:00:13]} 35... Bxe3 {[%clk 0:01:34.2]} 36. Bc3 {[%clk
0:00:12.6]} 36... Kf4 {[%clk 0:01:29.7]} 37. Kd5 {[%clk 0:00:11.1]} 37... Kxg4
{[%clk 0:01:28.6]} 38. Kc6 {[%clk 0:00:10.5]} 38... f5 {[%clk 0:01:26.5]} 39. a5
{[%clk 0:00:06.9]} 39... bxa5 {[%clk 0:01:25.1]} 40. bxa5 {[%clk 0:00:06.8]}
40... f4 {[%clk 0:01:25.7]} 41. Kb7 {[%clk 0:00:07.1]} 41... f3 {[%clk
0:01:26.2]} 42. Be1 {[%clk 0:00:07.5]} 42... f2 {[%clk 0:01:26.8]} 43. Bxf2
{[%clk 0:00:07.6]} 43... Bxf2 {[%clk 0:01:27.7]} 44. Kxa6 {[%clk 0:00:08.2]}
44... Kf3 {[%clk 0:01:28.3]} 0-1

[Event "*** Titled Tuesday Blitz"]
[Site "Chess.com"]
[Date "2021.04.20"]
[Round "5"]
[White "Pantata007"]
[Black "jraosam"]
[Result "0-1"]
[WhiteElo "2213"]
[BlackElo "1906"]
[TimeControl "180+1"]
[EndTime "10:53:56 PDT"]
[Termination "jraosam won by checkmate"]

1. d4 {[%clk 0:03:00.9]} 1... d5 {[%clk 0:02:59.2]} 2. c4 {[%clk 0:03:00.3]}
2... e6 {[%clk 0:02:59.3]} 3. Nc3 {[%clk 0:02:59.4]} 3... Nf6 {[%clk 0:02:58]}
4. cxd5 {[%clk 0:02:59]} 4... exd5 {[%clk 0:02:57.3]} 5. Bg5 {[%clk 0:02:58.1]}
5... c6 {[%clk 0:02:56.9]} 6. e3 {[%clk 0:02:57.5]} 6... Be7 {[%clk 0:02:55.7]}
7. Bd3 {[%clk 0:02:56.6]} 7... h6 {[%clk 0:02:55.6]} 8. Bf4 {[%clk 0:02:55.8]}
8... O-O {[%clk 0:02:55.7]} 9. Nf3 {[%clk 0:02:54.7]} 9... Nbd7 {[%clk
0:02:56.1]} 10. O-O {[%clk 0:02:53.5]} 10... Re8 {[%clk 0:02:55.6]} 11. h3
{[%clk 0:02:50.3]} 11... b6 {[%clk 0:02:53.9]} 12. Rc1 {[%clk 0:02:39.7]} 12...
Bb7 {[%clk 0:02:53.6]} 13. Bb1 {[%clk 0:02:24.6]} 13... a6 {[%clk 0:02:51.2]}
14. Qc2 {[%clk 0:02:17.5]} 14... Nf8 {[%clk 0:02:50.9]} 15. Ne5 {[%clk
0:02:15.6]} 15... Rc8 {[%clk 0:02:47.5]} 16. Rfd1 {[%clk 0:02:01.6]} 16... Ne6
{[%clk 0:02:42.6]} 17. Bh2 {[%clk 0:01:56.7]} 17... Bd6 {[%clk 0:02:40.7]} 18.
a3 {[%clk 0:01:42.6]} 18... Bb8 {[%clk 0:02:38.2]} 19. b4 {[%clk 0:01:36.2]}
19... Qe7 {[%clk 0:02:36.4]} 20. Na4 {[%clk 0:01:20.6]} 20... Nd7 {[%clk
0:02:22.3]} 21. Nxd7 {[%clk 0:01:12.8]} 21... Bxh2+ {[%clk 0:02:15.4]} 22. Kxh2
{[%clk 0:01:13.7]} 22... Qxd7 {[%clk 0:02:14.2]} 23. Qh7+ {[%clk 0:01:00.9]}
23... Kf8 {[%clk 0:02:13.9]} 24. Kg1 {[%clk 0:00:56.4]} 24... Qd8 {[%clk
0:02:05.9]} 25. Bf5 {[%clk 0:00:53.2]} 25... Ng5 {[%clk 0:01:04.7]} 26. Qh8+
{[%clk 0:00:50.1]} 26... Ke7 {[%clk 0:01:05]} 27. Qxg7 {[%clk 0:00:51]} 27...
Rg8 {[%clk 0:01:04.7]} 28. Qe5+ {[%clk 0:00:46.9]} 28... Kf8 {[%clk 0:01:03.3]}
29. Bxc8 {[%clk 0:00:44.4]} 29... Nf3+ {[%clk 0:01:02.7]} 30. Kh1 {[%clk
0:00:41.4]} 30... Nxe5 {[%clk 0:01:03.5]} 31. Bxb7 {[%clk 0:00:41]} 31... Qg5
{[%clk 0:00:59.2]} 32. Rg1 {[%clk 0:00:39.4]} 32... Nd3 {[%clk 0:00:56.4]} 33.
Rcf1 {[%clk 0:00:38.3]} 33... Qh4 {[%clk 0:00:52.1]} 34. Bxc6 {[%clk 0:00:29.3]}
34... Nxf2+ {[%clk 0:00:51.5]} 35. Kh2 {[%clk 0:00:28.8]} 35... Qg3# {[%clk
0:00:50.5]} 0-1

[Event "*** Titled Tuesday Blitz"]
[Site "Chess.com"]
[Date "2021.04.20"]
[Round "5"]
[White "ShahMatKanal"]
[Black "suyu28"]
[Result "0-1"]
[WhiteElo "2401"]
[BlackElo "2610"]
[TimeControl "180+1"]
[EndTime "10:53:59 PDT"]
[Termination "suyu28 won on time"]

1. Nf3 {[%clk 0:02:59.7]} 1... f5 {[%clk 0:02:59]} 2. d3 {[%clk 0:02:57.1]} 2...
Nf6 {[%clk 0:02:58.9]} 3. e4 {[%clk 0:02:56.6]} 3... d6 {[%clk 0:02:58.5]} 4. c3
{[%clk 0:02:48.4]} 4... g6 {[%clk 0:02:57.2]} 5. exf5 {[%clk 0:02:41]} 5... gxf5
{[%clk 0:02:57]} 6. Bg5 {[%clk 0:02:30.3]} 6... Bg7 {[%clk 0:02:56.1]} 7. Qb3
{[%clk 0:02:30.4]} 7... e6 {[%clk 0:02:51.9]} 8. Nbd2 {[%clk 0:02:27]} 8... O-O
{[%clk 0:02:51.3]} 9. Be2 {[%clk 0:02:16.2]} 9... Nc6 {[%clk 0:02:48.8]} 10.
O-O-O {[%clk 0:02:08.7]} 10... Kh8 {[%clk 0:02:48]} 11. h3 {[%clk 0:02:06.6]}
11... e5 {[%clk 0:02:46.5]} 12. g4 {[%clk 0:02:04.1]} 12... f4 {[%clk 0:02:46]}
13. Bh4 {[%clk 0:01:35.3]} 13... Qe8 {[%clk 0:02:44.2]} 14. Ng5 {[%clk
0:01:29.5]} 14... a5 {[%clk 0:02:38.4]} 15. Nde4 {[%clk 0:01:12.3]} 15... a4
{[%clk 0:02:35.1]} 16. Qc2 {[%clk 0:01:11.1]} 16... a3 {[%clk 0:02:33.5]} 17. b3
{[%clk 0:01:08.6]} 17... Nxe4 {[%clk 0:02:24.5]} 18. dxe4 {[%clk 0:01:00.9]}
18... b5 {[%clk 0:02:21.8]} 19. Bxb5 {[%clk 0:00:53.5]} 19... Bd7 {[%clk
0:02:21.8]} 20. Bc4 {[%clk 0:00:34.4]} 20... Na5 {[%clk 0:02:17.8]} 21. Bf7
{[%clk 0:00:34.2]} 21... Rxf7 {[%clk 0:02:14.4]} 22. Nxf7+ {[%clk 0:00:35.1]}
22... Qxf7 {[%clk 0:02:15.3]} 23. f3 {[%clk 0:00:35.5]} 23... Be6 {[%clk
0:02:11.1]} 24. c4 {[%clk 0:00:29.7]} 24... Rb8 {[%clk 0:02:03]} 25. Be1 {[%clk
0:00:22.2]} 25... Nc6 {[%clk 0:01:55.8]} 26. Bc3 {[%clk 0:00:20.8]} 26... Nd4
{[%clk 0:01:53.9]} 27. Bxd4 {[%clk 0:00:20.6]} 27... exd4 {[%clk 0:01:54.8]} 28.
Rd3 {[%clk 0:00:19.3]} 28... c5 {[%clk 0:01:54.8]} 29. h4 {[%clk 0:00:18.3]}
29... Bf8 {[%clk 0:01:55]} 30. Qg2 {[%clk 0:00:17.8]} 30... Bxc4 {[%clk
0:01:49.7]} 31. bxc4 {[%clk 0:00:11.7]} 31... Rb2 {[%clk 0:01:50.6]} 32. Rd2
{[%clk 0:00:05.5]} 32... Qxc4+ {[%clk 0:01:50.2]} 33. Rc2 {[%clk 0:00:04.1]}
33... Qd3 {[%clk 0:01:19.8]} 34. Rxb2 {[%clk 0:00:03.8]} 34... axb2+ {[%clk
0:01:20.7]} 35. Qxb2 {[%clk 0:00:03.7]} 35... Qxf3 {[%clk 0:01:20.9]} 36. Re1
{[%clk 0:00:02.5]} 36... h6 {[%clk 0:01:15.7]} 37. Qb8 {[%clk 0:00:01.8]} 37...
Kg8 {[%clk 0:01:12]} 0-1

[Event "*** Titled Tuesday Blitz"]
[Site "Chess.com"]
[Date "2021.04.20"]
[Round "5"]
[White "FairChess_on_YouTube"]
[Black "JakubPulpan"]
[Result "1-0"]
[WhiteElo "3017"]
[BlackElo "2746"]
[TimeControl "180+1"]
[EndTime "10:54:00 PDT"]
[Termination "FairChess_on_YouTube won by resignation"]

1. Nf3 {[%clk 0:02:55.7]} 1... Nf6 {[%clk 0:02:58.5]} 2. b3 {[%clk 0:02:54.7]}
2... d5 {[%clk 0:02:56]} 3. Bb2 {[%clk 0:02:54.8]} 3... e6 {[%clk 0:02:55.6]} 4.
e3 {[%clk 0:02:54.5]} 4... Be7 {[%clk 0:02:55.8]} 5. c4 {[%clk 0:02:54.5]} 5...
b6 {[%clk 0:02:54.9]} 6. cxd5 {[%clk 0:02:50]} 6... exd5 {[%clk 0:02:54.8]} 7.
Be2 {[%clk 0:02:47.9]} 7... Bb7 {[%clk 0:02:53.5]} 8. O-O {[%clk 0:02:47.9]}
8... O-O {[%clk 0:02:53.6]} 9. Nc3 {[%clk 0:02:47.5]} 9... Nbd7 {[%clk
0:02:51.6]} 10. Rc1 {[%clk 0:02:47]} 10... c5 {[%clk 0:02:48]} 11. d4 {[%clk
0:02:46.6]} 11... Rc8 {[%clk 0:02:47.9]} 12. h3 {[%clk 0:02:26.5]} 12... Ne4
{[%clk 0:02:43.7]} 13. dxc5 {[%clk 0:02:20]} 13... Nxc3 {[%clk 0:02:41.5]} 14.
Bxc3 {[%clk 0:02:18.9]} 14... Nxc5 {[%clk 0:02:41.9]} 15. Be5 {[%clk 0:02:04.3]}
15... Bd6 {[%clk 0:02:36.1]} 16. Bxd6 {[%clk 0:02:00.5]} 16... Qxd6 {[%clk
0:02:37]} 17. Nd4 {[%clk 0:01:59.9]} 17... Ne6 {[%clk 0:02:32.2]} 18. Rxc8
{[%clk 0:01:48.2]} 18... Rxc8 {[%clk 0:02:31.3]} 19. Bg4 {[%clk 0:01:48]} 19...
g6 {[%clk 0:02:27.3]} 20. f4 {[%clk 0:01:29.2]} 20... Ba6 {[%clk 0:02:13.6]} 21.
Rf2 {[%clk 0:01:19.4]} 21... f5 {[%clk 0:02:09.5]} 22. Bf3 {[%clk 0:01:18.5]}
22... Nc5 {[%clk 0:02:03.8]} 23. Rd2 {[%clk 0:01:12.3]} 23... Ne4 {[%clk
0:02:00]} 24. Bxe4 {[%clk 0:01:10.2]} 24... fxe4 {[%clk 0:02:00.9]} 25. Rc2
{[%clk 0:01:07.2]} 25... Rc5 {[%clk 0:01:59]} 26. Qg4 {[%clk 0:00:58.4]} 26...
Rxc2 {[%clk 0:01:47.1]} 27. Nxc2 {[%clk 0:00:57.5]} 27... Qc5 {[%clk 0:01:48]}
28. Qe6+ {[%clk 0:00:51.8]} 28... Kg7 {[%clk 0:01:45.8]} 29. Qe5+ {[%clk
0:00:46.8]} 29... Kf7 {[%clk 0:01:02.7]} 30. Nd4 {[%clk 0:00:47.7]} 30... Qc1+
{[%clk 0:01:03]} 31. Kh2 {[%clk 0:00:47.2]} 31... Qxe3 {[%clk 0:01:03.6]} 32.
Qxd5+ {[%clk 0:00:46.4]} 32... Kf6 {[%clk 0:00:57.3]} 33. Qd6+ {[%clk
0:00:37.6]} 33... Kf7 {[%clk 0:00:54.1]} 34. Qd7+ {[%clk 0:00:32]} 34... Kf6
{[%clk 0:00:47]} 35. Qe6+ {[%clk 0:00:30.4]} 35... Kg7 {[%clk 0:00:46.9]} 36.
Qe7+ {[%clk 0:00:31]} 36... Kh6 {[%clk 0:00:45.3]} 37. Ne6 {[%clk 0:00:29.4]}
1-0

[Event "*** Titled Tuesday Blitz"]
[Site "Chess.com"]
[Date "2021.04.20"]
[Round "5"]
[White "sara_khm"]
[Black "gumimis"]
[Result "1-0"]
[WhiteElo "2528"]
[BlackElo "2325"]
[TimeControl "180+1"]
[EndTime "10:54:01 PDT"]
[Termination "sara_khm won by resignation"]

1. d4 {[%clk 0:03:00.9]} 1... Nf6 {[%clk 0:02:58.8]} 2. c4 {[%clk 0:03:00.9]}
2... g6 {[%clk 0:02:59.7]} 3. g3 {[%clk 0:03:00.3]} 3... Bg7 {[%clk 0:03:00.6]}
4. Bg2 {[%clk 0:03:00.6]} 4... O-O {[%clk 0:03:01.3]} 5. Nf3 {[%clk 0:03:00.8]}
5... d6 {[%clk 0:03:01.7]} 6. O-O {[%clk 0:03:01]} 6... Nc6 {[%clk 0:03:00.6]}
7. Nc3 {[%clk 0:03:01.1]} 7... e5 {[%clk 0:02:59.3]} 8. dxe5 {[%clk 0:03:00.6]}
8... Nxe5 {[%clk 0:02:47]} 9. Nxe5 {[%clk 0:03:00.2]} 9... dxe5 {[%clk
0:02:47.9]} 10. Bg5 {[%clk 0:02:58.3]} 10... c6 {[%clk 0:02:39.9]} 11. Qxd8
{[%clk 0:02:52]} 11... Rxd8 {[%clk 0:02:39.3]} 12. Ne4 {[%clk 0:02:52.6]} 12...
Nxe4 {[%clk 0:02:30.6]} 13. Bxd8 {[%clk 0:02:52.6]} 13... Nd2 {[%clk 0:02:30.5]}
14. Rfc1 {[%clk 0:02:49.4]} 14... Be6 {[%clk 0:02:20.4]} 15. Bg5 {[%clk
0:02:39.6]} 15... Nxc4 {[%clk 0:02:18.5]} 16. b3 {[%clk 0:02:29.6]} 16... Na3
{[%clk 0:02:10.6]} 17. Be7 {[%clk 0:02:26.9]} 17... Nb5 {[%clk 0:02:08]} 18. Rc2
{[%clk 0:02:20.4]} 18... Nd4 {[%clk 0:01:50.8]} 19. Rd2 {[%clk 0:02:19.6]} 19...
Bh6 {[%clk 0:01:47.3]} 20. e3 {[%clk 0:02:19.1]} 20... Bf5 {[%clk 0:01:42.2]}
21. Rad1 {[%clk 0:02:11.3]} 21... Re8 {[%clk 0:01:26.9]} 22. Bf6 {[%clk
0:02:06.3]} 22... Ne6 {[%clk 0:01:22.2]} 23. Bxe5 {[%clk 0:02:04.3]} 23... Bg4
{[%clk 0:01:14.8]} 24. Rc1 {[%clk 0:01:57.5]} 24... Ng5 {[%clk 0:01:12.8]} 25.
Bf4 {[%clk 0:01:56.1]} 25... Kg7 {[%clk 0:00:46.6]} 26. h4 {[%clk 0:01:45.5]}
26... Nh3+ {[%clk 0:00:36.5]} 27. Bxh3 {[%clk 0:01:41.5]} 27... Bxh3 {[%clk
0:00:36.8]} 28. Bxh6+ {[%clk 0:01:40.7]} 28... Kxh6 {[%clk 0:00:37.7]} 29. Kh2
{[%clk 0:01:39.5]} 29... Bf5 {[%clk 0:00:35]} 30. Kg2 {[%clk 0:01:39.7]} 30...
Be4+ {[%clk 0:00:32.9]} 31. f3 {[%clk 0:01:40.1]} 31... Bd5 {[%clk 0:00:31.8]}
32. e4 {[%clk 0:01:40.2]} 32... Be6 {[%clk 0:00:32.4]} 33. Rcd1 {[%clk
0:01:39.9]} 33... a6 {[%clk 0:00:27.4]} 34. Rd8 {[%clk 0:01:38.9]} 34... Re7
{[%clk 0:00:27.5]} 35. R1d6 {[%clk 0:01:38.9]} 35... Kg7 {[%clk 0:00:25.6]} 36.
Kf2 {[%clk 0:01:38.8]} 36... h5 {[%clk 0:00:21.3]} 37. Rb8 {[%clk 0:01:35.1]}
37... Kf6 {[%clk 0:00:19.9]} 38. Rdd8 {[%clk 0:01:32.1]} 38... Rc7 {[%clk
0:00:20]} 39. f4 {[%clk 0:01:30.4]} 39... Ke7 {[%clk 0:00:19.6]} 40. Re8+ {[%clk
0:01:30]} 40... Kd6 {[%clk 0:00:17.5]} 41. Rbd8+ {[%clk 0:01:29.5]} 41... Kc5
{[%clk 0:00:17.6]} 42. f5 {[%clk 0:01:28.1]} 42... gxf5 {[%clk 0:00:16]} 43.
exf5 {[%clk 0:01:28.5]} 43... Bxf5 {[%clk 0:00:16.9]} 44. Re5+ {[%clk
0:01:27.9]} 44... Kb4 {[%clk 0:00:14.2]} 45. Rxf5 {[%clk 0:01:28]} 45... Ka3
{[%clk 0:00:15.1]} 46. Ra5+ {[%clk 0:01:27.5]} 46... Kb2 {[%clk 0:00:14.8]} 47.
Rd2+ {[%clk 0:01:27.4]} 47... Kc3 {[%clk 0:00:15.3]} 48. Re2 {[%clk 0:01:27.8]}
48... Rd7 {[%clk 0:00:14.8]} 49. Rae5 {[%clk 0:01:27.8]} 1-0

[Event "*** Titled Tuesday Blitz"]
[Site "Chess.com"]
[Date "2021.04.20"]
[Round "5"]
[White "JelenaKarleusa-SO-18"]
[Black "chessmadara"]
[Result "1-0"]
[WhiteElo "2658"]
[BlackElo "2167"]
[TimeControl "180+1"]
[EndTime "10:54:05 PDT"]
[Termination "JelenaKarleusa-SO-18 won by resignation"]

1. e4 {[%clk 0:03:00.9]} 1... c5 {[%clk 0:02:59.9]} 2. Nc3 {[%clk 0:03:00.2]}
2... d6 {[%clk 0:02:59.4]} 3. f4 {[%clk 0:02:59.9]} 3... g6 {[%clk 0:02:57.7]}
4. Nf3 {[%clk 0:02:59.6]} 4... Bg7 {[%clk 0:02:57.4]} 5. Bb5+ {[%clk 0:02:59.2]}
5... Bd7 {[%clk 0:02:54]} 6. Bc4 {[%clk 0:02:55.9]} 6... e6 {[%clk 0:02:49]} 7.
O-O {[%clk 0:02:53.5]} 7... Ne7 {[%clk 0:02:49.5]} 8. a4 {[%clk 0:02:51.1]} 8...
O-O {[%clk 0:02:47.7]} 9. d3 {[%clk 0:02:40.2]} 9... Nbc6 {[%clk 0:02:46.3]} 10.
Qe1 {[%clk 0:02:38.2]} 10... Nd4 {[%clk 0:02:27.9]} 11. Nxd4 {[%clk 0:02:37.3]}
11... Bxd4+ {[%clk 0:02:27.1]} 12. Kh1 {[%clk 0:02:36.2]} 12... Nc6 {[%clk
0:02:26.4]} 13. f5 {[%clk 0:02:34.7]} 13... exf5 {[%clk 0:02:18.5]} 14. exf5
{[%clk 0:02:32.9]} 14... Ne5 {[%clk 0:02:14.7]} 15. Bd5 {[%clk 0:02:31.3]} 15...
Bc6 {[%clk 0:02:09.7]} 16. Bxc6 {[%clk 0:02:17.9]} 16... bxc6 {[%clk 0:02:08.7]}
17. f6 {[%clk 0:02:14.6]} 17... Ng4 {[%clk 0:02:02.6]} 18. Qh4 {[%clk
0:01:57.7]} 18... h5 {[%clk 0:01:53.4]} 19. Bg5 {[%clk 0:01:49.8]} 19... Qd7
{[%clk 0:01:42.4]} 20. h3 {[%clk 0:01:49]} 20... Ne3 {[%clk 0:01:38.4]} 21. Bxe3
{[%clk 0:01:36.8]} 21... Bxe3 {[%clk 0:01:39.3]} 22. Ne4 {[%clk 0:01:36.9]}
22... d5 {[%clk 0:01:32.3]} 23. Ng3 {[%clk 0:01:30.3]} 23... Qd6 {[%clk
0:01:18.8]} 24. Rf3 {[%clk 0:01:21.5]} 24... Rae8 {[%clk 0:01:06.8]} 25. Raf1
{[%clk 0:01:19.2]} 25... Qe5 {[%clk 0:00:51.6]} 26. Nf5 {[%clk 0:01:11]} 26...
Bd2 {[%clk 0:00:35.4]} 27. g4 {[%clk 0:00:48.4]} 27... Re6 {[%clk 0:00:22.6]}
28. gxh5 {[%clk 0:00:46.2]} 28... gxf5 {[%clk 0:00:15.2]} 29. Rxf5 {[%clk
0:00:40.3]} 29... Qe3 {[%clk 0:00:11.5]} 30. Qg4+ {[%clk 0:00:39.8]} 1-0

[Event "*** Titled Tuesday Blitz"]
[Site "Chess.com"]
[Date "2021.04.20"]
[Round "5"]
[White "AEMEffi"]
[Black "Gulkov_Igor"]
[Result "0-1"]
[WhiteElo "2324"]
[BlackElo "2527"]
[TimeControl "180+1"]
[EndTime "10:54:09 PDT"]
[Termination "Gulkov_Igor won by resignation"]

1. d4 {[%clk 0:02:40.3]} 1... Nf6 {[%clk 0:02:59.3]} 2. c4 {[%clk 0:02:40.7]}
2... g6 {[%clk 0:02:58.3]} 3. Nc3 {[%clk 0:02:41]} 3... Bg7 {[%clk 0:02:58.3]}
4. e4 {[%clk 0:02:40.7]} 4... d6 {[%clk 0:02:58.2]} 5. h3 {[%clk 0:02:41.6]}
5... O-O {[%clk 0:02:57.8]} 6. Nf3 {[%clk 0:02:42]} 6... e5 {[%clk 0:02:56.9]}
7. d5 {[%clk 0:02:37.9]} 7... a5 {[%clk 0:02:56.2]} 8. Be3 {[%clk 0:02:37.5]}
8... Na6 {[%clk 0:02:55.5]} 9. Nd2 {[%clk 0:02:28.6]} 9... Nd7 {[%clk
0:02:29.1]} 10. a3 {[%clk 0:02:24.5]} 10... f5 {[%clk 0:02:25.2]} 11. f3 {[%clk
0:02:24.5]} 11... Bh6 {[%clk 0:02:23]} 12. Qe2 {[%clk 0:01:59.9]} 12... Bxe3
{[%clk 0:02:19]} 13. Qxe3 {[%clk 0:02:00.8]} 13... Nac5 {[%clk 0:02:17.8]} 14.
O-O-O {[%clk 0:01:56.5]} 14... a4 {[%clk 0:02:17]} 15. h4 {[%clk 0:01:26]} 15...
f4 {[%clk 0:02:09.4]} 16. Qg1 {[%clk 0:01:20.7]} 16... Nf6 {[%clk 0:02:09.4]}
17. Be2 {[%clk 0:01:01.3]} 17... Bd7 {[%clk 0:02:06.3]} 18. Nf1 {[%clk
0:00:49.8]} 18... Nh5 {[%clk 0:02:04.6]} 19. g4 {[%clk 0:00:39.2]} 19... fxg3
{[%clk 0:02:02.7]} 20. Nxg3 {[%clk 0:00:39.8]} 20... Nxg3 {[%clk 0:01:52.6]} 21.
Qxg3 {[%clk 0:00:38.9]} 21... Kh8 {[%clk 0:01:52.8]} 22. h5 {[%clk 0:00:35.6]}
22... g5 {[%clk 0:01:51.4]} 23. h6 {[%clk 0:00:36.2]} 23... Qf6 {[%clk
0:01:32.1]} 24. Rdg1 {[%clk 0:00:34.4]} 24... Rg8 {[%clk 0:01:31.8]} 25. Kb1
{[%clk 0:00:24.6]} 25... Qf4 {[%clk 0:01:23.6]} 26. Qxf4 {[%clk 0:00:18.4]}
26... gxf4 {[%clk 0:01:22.7]} 27. Kc2 {[%clk 0:00:17.8]} 27... Rg6 {[%clk
0:01:19.9]} 28. Rxg6 {[%clk 0:00:12.6]} 28... hxg6 {[%clk 0:01:19.6]} 29. Nb5
{[%clk 0:00:13.5]} 29... Bxb5 {[%clk 0:01:18.2]} 30. cxb5 {[%clk 0:00:14.4]}
30... b6 {[%clk 0:01:17.9]} 31. Kc3 {[%clk 0:00:12.9]} 31... Kh7 {[%clk
0:01:16.9]} 32. Bd1 {[%clk 0:00:12.9]} 32... g5 {[%clk 0:01:01.6]} 33. Kc4
{[%clk 0:00:13.1]} 33... Kg6 {[%clk 0:01:00]} 34. Rh2 {[%clk 0:00:13.2]} 34...
Rh8 {[%clk 0:00:52.8]} 35. Kb4 {[%clk 0:00:13.7]} 35... Rxh6 {[%clk 0:00:52.7]}
36. Rxh6+ {[%clk 0:00:13.2]} 36... Kxh6 {[%clk 0:00:53.1]} 37. Bxa4 {[%clk
0:00:13.7]} 37... g4 {[%clk 0:00:51.9]} 38. Bd1 {[%clk 0:00:11.8]} 38... g3
{[%clk 0:00:51]} 0-1

[Event "*** Titled Tuesday Blitz"]
[Site "Chess.com"]
[Date "2021.04.20"]
[Round "5"]
[White "MarcoRiehle"]
[Black "IljaJoke"]
[Result "1-0"]
[WhiteElo "2709"]
[BlackElo "2494"]
[TimeControl "180+1"]
[EndTime "10:54:11 PDT"]
[Termination "MarcoRiehle won by resignation"]

1. e4 {[%clk 0:03:00.9]} 1... c5 {[%clk 0:02:58.1]} 2. a3 {[%clk 0:02:58.3]}
2... g6 {[%clk 0:02:53.2]} 3. h4 {[%clk 0:02:57.5]} 3... Nf6 {[%clk 0:02:46.7]}
4. e5 {[%clk 0:02:56]} 4... Nd5 {[%clk 0:02:47]} 5. c4 {[%clk 0:02:55.4]} 5...
Nc7 {[%clk 0:02:46.6]} 6. h5 {[%clk 0:02:52.7]} 6... Bg7 {[%clk 0:02:46.8]} 7.
f4 {[%clk 0:02:47.1]} 7... d6 {[%clk 0:02:28.6]} 8. h6 {[%clk 0:02:43.3]} 8...
Bf8 {[%clk 0:02:28.8]} 9. Nf3 {[%clk 0:02:41.9]} 9... Nc6 {[%clk 0:02:28.7]} 10.
Nc3 {[%clk 0:02:40.3]} 10... Bg4 {[%clk 0:02:21.7]} 11. Be2 {[%clk 0:02:39.5]}
11... dxe5 {[%clk 0:02:08.8]} 12. Nxe5 {[%clk 0:02:23.1]} 12... Nxe5 {[%clk
0:02:06.9]} 13. fxe5 {[%clk 0:02:21.7]} 13... Bxe2 {[%clk 0:02:02.6]} 14. Qxe2
{[%clk 0:02:22.6]} 14... Ne6 {[%clk 0:01:36.5]} 15. d3 {[%clk 0:02:16.3]} 15...
Nd4 {[%clk 0:01:36.3]} 16. Qf2 {[%clk 0:02:15.6]} 16... e6 {[%clk 0:01:33.6]}
17. Be3 {[%clk 0:02:12.5]} 17... Be7 {[%clk 0:01:32.8]} 18. Ne4 {[%clk
0:02:04.6]} 18... O-O {[%clk 0:01:31.7]} 19. O-O {[%clk 0:02:00.4]} 19... b6
{[%clk 0:01:21.4]} 20. b4 {[%clk 0:01:59]} 20... Rc8 {[%clk 0:00:57]} 21. Rab1
{[%clk 0:01:50.5]} 21... Nf5 {[%clk 0:00:51.9]} 22. Rfd1 {[%clk 0:01:43.8]}
22... Nxe3 {[%clk 0:00:42.4]} 23. Qxe3 {[%clk 0:01:44.7]} 23... Qd4 {[%clk
0:00:42.3]} 24. Qxd4 {[%clk 0:01:40.1]} 24... cxd4 {[%clk 0:00:43.2]} 25. g4
{[%clk 0:01:40.2]} 25... f5 {[%clk 0:00:33.6]} 26. exf6 {[%clk 0:01:39.9]} 26...
Bxf6 {[%clk 0:00:33.9]} 27. Rf1 {[%clk 0:01:27.2]} 27... Be5 {[%clk 0:00:34]}
28. Kg2 {[%clk 0:01:25.5]} 28... Bf4 {[%clk 0:00:32.8]} 29. g5 {[%clk
0:01:22.5]} 29... Rf5 {[%clk 0:00:26.5]} 30. Rf3 {[%clk 0:01:13.9]} 30... Rcf8
{[%clk 0:00:14]} 31. Rbf1 {[%clk 0:01:13.3]} 31... Be3 {[%clk 0:00:14.2]} 32. c5
{[%clk 0:01:07.8]} 32... bxc5 {[%clk 0:00:13.5]} 33. bxc5 {[%clk 0:01:08.7]}
33... Rxf3 {[%clk 0:00:06.9]} 34. Rxf3 {[%clk 0:01:09.6]} 34... Rxf3 {[%clk
0:00:07.2]} 35. Kxf3 {[%clk 0:01:10.5]} 35... Kf7 {[%clk 0:00:07.4]} 36. Kg4
{[%clk 0:01:10.5]} 36... Bc1 {[%clk 0:00:07.2]} 37. a4 {[%clk 0:01:07.2]} 37...
Ba3 {[%clk 0:00:07]} 38. c6 {[%clk 0:01:07.5]} 38... Ke7 {[%clk 0:00:07.3]} 39.
Nf6 {[%clk 0:01:07.8]} 39... Bd6 {[%clk 0:00:03.5]} 40. Nxh7 {[%clk 0:01:05.7]}
40... Kf7 {[%clk 0:00:03.8]} 41. Nf6 {[%clk 0:01:05.8]} 41... Bc7 {[%clk
0:00:03.1]} 42. h7 {[%clk 0:01:05.4]} 1-0